bitfinex/quotes_ETHUSD_20241129
["timestamp","ask_amount","ask_price","bid_price","bid_amount"]
[1732841960895,5.80647,3563.2,3562.5,4.25254026]
[1732841961229,0.26071335,3563.1,3562.5,4.25254026]
[1732841961425,0.26071335,3563.0,3562.5,4.25254026]
[1732841961731,5.80647,3563.2,3562.6,0.42525403]
[1732841961893,0.26083607,3563.1,3562.6,0.42525403]
[1732841962093,0.26083607,3563.0,3562.6,0.42525403]
[1732841962306,0.26083607,3562.9,3562.6,0.42525403]
[1732841962514,0.26083607,3562.8,3562.6,0.42525403]
[1732841962723,5.80647,3563.2,3562.6,0.42525403]
[1732841962935,0.67833326,3563.1,3562.5,4.25254026]
[1732841963109,0.26090184,3563.0,3562.6,2.80692]
[1732841963614,0.26090184,3562.9,3562.6,2.80692]
[1732841963815,0.26102058,3562.8,3562.7,2.80685]
[1732841963996,2.80623,3563.5,3562.7,2.80685]
[1732841963997,0.43483641,3563.8,3563.5,0.8138]
[1732841964196,0.61039451,3564.4,3563.9,2.80589]
[1732841964431,1.74561712,3564.7,3563.1,0.8138]
[1732841964432,0.67884912,3564.3,3563.1,0.8138]
[1732841964638,0.26109592,3564.2,3564.1,0.8138]
[1732841965435,0.26109592,3564.2,3564.1,3.61955]
[1732841965931,0.26109592,3564.2,3564.1,0.8138]
[1732841966562,0.26109592,3564.6,3564.1,3.61955]
[1732841966830,0.26109592,3564.5,3564.1,3.61955]
[1732841967028,0.26109592,3564.4,3564.1,3.61955]
[1732841967207,0.26109592,3564.6,3564.1,3.61955]
[1732841967738,3.0,3564.7,3564.1,3.61955]
[1732841967902,0.26044319,3564.6,3564.1,3.61955]
[1732841968097,0.52085795,3564.6,3564.1,3.61955]
[1732841968293,0.26044319,3564.6,3564.2,2.80563]
[1732841969534,0.52085795,3564.6,3564.2,2.80563]
[1732841969741,0.26044319,3564.6,3564.2,2.80563]
[1732841970041,0.26019882,3564.5,3564.2,2.80563]
[1732841970351,0.52064201,3564.6,3564.3,2.80559]
[1732841970632,0.26044319,3564.6,3564.2,2.80563]
[1732841971012,0.52064201,3564.6,3564.2,2.80563]
[1732841971217,0.26044319,3564.6,3564.2,2.80563]
[1732841971531,0.02089881,3564.5,3564.1,0.8138]
[1732841971835,0.89302739,3564.6,3563.8,3.56027]
[1732841972001,0.26044319,3564.6,3564.0,2.80582]
[1732841972202,3.52031674,3564.6,3564.0,2.80582]
[1732841972435,0.25987355,3564.5,3564.0,2.80582]
[1732841973138,0.26044319,3564.6,3564.1,2.80574]
[1732841974240,0.26044319,3564.6,3564.2,2.80567]
[1732841974892,0.25971638,3564.7,3564.2,2.80567]
[1732841975324,0.02089881,3564.6,3563.9,2.80591]
[1732841975532,3.0,3564.5,3563.9,2.80591]
[1732841975740,0.02089881,3564.4,3563.9,2.80591]
[1732841976041,3.0,3564.5,3563.8,0.7543]
[1732841976042,0.02089881,3564.5,3564.0,2.8058]
[1732841976243,2.82633881,3564.5,3563.8,3.56025]
[1732841976449,3.0,3564.0,3563.3,2.80632]
[1732841976663,3.55,3564.1,3563.3,2.80632]
[1732841976946,0.2593626,3564.0,3563.5,2.80616]
[1732841977106,0.2593626,3564.0,3563.6,0.8227]
[1732841977298,3.0649326,3564.4,3563.6,3.62884]
[1732841977544,3.2593626,3564.3,3563.6,3.62884]
[1732841977709,3.0,3564.3,3563.6,0.8227]
[1732841977915,0.7717,3564.6,3563.7,2.80605]
[1732841978119,3.0,3564.4,3563.7,2.80605]
[1732841978917,3.0,3564.4,3563.6,0.8227]
[1732841979313,2.80567,3564.2,3563.6,0.8227]
[1732841979536,0.8302,3564.0,3563.3,2.80638]
[1732841979716,2.80592,3563.9,3563.3,2.80638]
[1732841979923,0.8302,3564.0,3563.4,2.80628]
[1732841980516,3.63604,3564.0,3563.2,3.5904]
[1732841980707,3.63604,3564.0,3563.3,2.80636]
[1732841984836,2.80584,3564.0,3563.3,2.80636]
[1732841985147,3.55,3564.1,3563.4,2.80629]
[1732841985451,3.35578,3564.1,3563.4,2.80629]
[1732841985967,2.80584,3564.0,3563.2,3.446108]
[1732841986723,2.80584,3564.0,3563.1,2.80648]
[1732841986724,3.0,3564.4,3563.5,2.80616]
[1732841986938,3.0,3564.1,3563.5,2.80616]
[1732841987142,5.80577,3564.1,3563.3,2.80636]
[1732841987346,5.80577,3564.1,3563.1,2.80653]
[1732841987669,5.80577,3564.1,3563.4,2.80628]
[1732841988047,3.0,3564.2,3563.5,2.80621]
[1732841988252,0.26000689,3564.1,3563.5,2.80621]
[1732841988468,3.0,3564.2,3563.5,2.80621]
[1732841988652,0.26006816,3564.1,3563.5,2.80621]
[1732841988973,3.0,3564.2,3563.5,2.80621]
[1732841989180,0.26006912,3564.1,3563.5,2.80621]
[1732841989349,0.26006912,3564.0,3563.5,2.80621]
[1732841989553,3.0,3564.1,3563.5,2.80621]
[1732841989752,0.2601694,3564.0,3563.5,2.80621]
[1732841990047,5.80576,3564.1,3563.3,2.80638]
[1732841990250,0.26017227,3564.0,3563.3,2.80638]
[1732841990452,5.80576,3564.1,3563.3,2.80638]
[1732841990750,3.06611301,3564.0,3563.3,2.80638]
[1732841990980,0.26034264,3563.9,3563.3,2.80638]
[1732841991144,2.80584,3564.0,3563.3,2.80638]
[1732841991339,0.26046599,3563.9,3563.3,2.80638]
[1732841991543,2.80584,3564.0,3563.3,2.80638]
[1732841991774,0.26048641,3563.9,3563.3,2.80638]
[1732841991963,2.80584,3564.0,3563.3,2.80638]
[1732841992171,3.26050009,3563.9,3562.7,0.70593303]
[1732841992487,2.80663,3563.0,3562.3,2.80715]
[1732841992688,2.8066,3563.1,3562.4,2.80708]
[1732841992847,2.8066,3563.1,3562.7,0.31003189]
[1732841993193,0.26057874,3563.0,3562.7,0.31003189]
[1732841993341,2.8066,3563.1,3562.7,0.31003189]
[1732841993881,0.2606509,3563.0,3562.7,0.31003189]
[1732841994195,2.8066,3563.1,3562.7,0.31003189]
[1732841994787,0.02089881,3563.0,3562.2,2.80725]
[1732841994955,2.80666,3563.0,3562.3,2.80717]
[1732841995974,2.80673,3562.9,3562.2,2.80724]
[1732841996293,2.80685,3562.7,3561.9,2.80747]
[1732841996491,6.36821,3562.7,3561.7,2.80763]
[1732841996795,6.36821,3562.7,3561.4,0.56913239]
[1732841996796,2.80701,3562.5,3561.4,2.80788]
[1732841996968,2.80724,3562.3,3561.7,0.29332401]
[1732841997179,2.80701,3562.5,3561.7,0.29332401]
[1732841997180,2.80756,3561.8,3561.7,0.29332401]
[1732841997356,0.02089881,3562.2,3561.7,0.29332401]
[1732841997357,2.80741,3562.0,3561.7,0.29332401]
[1732841997876,2.80726,3562.2,3561.4,2.80787]
[1732841998198,2.80736,3562.1,3561.5,0.28359462]
[1732841998358,2.80736,3562.1,3561.2,0.29335802]
[1732841998359,2.80758,3561.8,3561.2,0.29335802]
[1732841998558,2.80736,3562.1,3561.2,3.10138802]
[1732841998794,2.80747,3562.0,3561.2,3.10138802]
[1732841999502,2.80736,3562.1,3561.2,0.29335802]
[1732841999695,5.61476,3562.1,3561.3,2.80795]
[1732841999999,2.80741,3562.0,3561.4,0.3101308]
[1732842000494,2.8071,3562.4,3561.7,2.80758]
[1732842000670,3.0,3562.2,3561.5,2.8078]
[1732842000861,3.0,3562.2,3561.6,3.11950308]
[1732842001260,5.82821881,3562.2,3561.6,0.31179308]
[1732842001460,3.02089881,3562.2,3561.2,0.29335802]
[1732842001700,2.8077,3561.7,3561.2,0.29335802]
[1732842001958,3.0,3562.2,3561.2,0.02807743]
[1732842002269,3.0,3562.2,3561.4,2.80787]
[1732842002479,2.80726,3562.2,3561.2,0.29336461]
[1732842002662,0.02089881,3562.1,3561.4,2.80786]
[1732842002863,2.80726,3562.2,3561.5,2.8078]
[1732842003420,2.80726,3562.2,3561.3,0.31014246]
[1732842003421,2.80745,3562.0,3561.3,0.31014246]
[1732842003625,2.80726,3562.2,3561.4,2.80787]
[1732842003911,2.80734,3562.1,3561.4,2.80787]
[1732842004231,2.80734,3562.1,3561.5,0.62194071]
[1732842004597,3.0,3562.2,3561.5,3.42974071]
[1732842004801,0.41575573,3562.5,3561.9,2.80744]
[1732842005371,0.02089881,3562.4,3561.2,0.29335138]
[1732842005718,0.02089881,3562.4,3559.6,2.80926]
[1732842005719,5.94440018,3561.7,3559.4,2.80942]
[1732842005876,2.80804,3561.2,3560.1,2.80888]
[1732842006074,3.0,3561.1,3560.4,2.80866]
[1732842006273,5.80814,3561.1,3560.4,2.80866]
[1732842006503,5.80796,3561.3,3559.9,5.61812]
[1732842006705,2.80807,3561.2,3560.4,2.80864]
[1732842006908,2.82904881,3561.1,3560.1,2.8089]
[1732842007080,2.80861,3560.5,3559.6,0.29341859]
[1732842007279,0.57089881,3561.1,3559.6,0.29341859]
[1732842007280,0.02089881,3560.4,3559.6,0.29341859]
[1732842007500,3.0,3559.9,3559.6,0.29341859]
[1732842007698,2.80914,3559.8,3559.6,0.29341859]
[1732842007900,2.80906,3559.9,3559.0,2.8097]
[1732842008117,3.0,3559.8,3559.2,3.10317889]
[1732842008503,3.0,3559.8,3559.2,0.29356889]
[1732842009015,3.0,3559.8,3559.2,3.10317889]
[1732842009376,3.0,3560.1,3559.2,3.10317889]
[1732842009576,3.0,3560.1,3559.3,2.80954]
[1732842009776,3.0,3560.1,3559.4,2.80939]
[1732842010220,2.80915,3559.8,3559.2,0.29356889]
[1732842010403,0.580883,3560.1,3559.2,0.29356889]
[1732842010629,3.0,3559.9,3559.2,0.29356889]
[1732842010808,3.0,3560.2,3559.5,2.80937]
[1732842011013,5.80868,3560.4,3559.5,2.80937]
[1732842011235,3.389618,3560.3,3559.3,2.80951]
[1732842011445,3.0,3560.2,3559.2,3.10317889]
[1732842011657,3.0,3560.1,3559.4,2.80942]
[1732842011942,3.389628,3560.3,3559.5,2.80937]
[1732842012151,3.0,3560.4,3559.2,3.10312889]
[1732842012152,3.0,3560.4,3559.4,2.80946]
[1732842012317,2.80788,3561.4,3560.2,2.80878]
[1732842012510,2.80788,3561.4,3560.7,2.80842]
[1732842012705,2.8075,3561.9,3559.9,2.80906]
[1732842013028,2.80736,3562.1,3561.2,2.80797]
[1732842013227,2.82834881,3562.0,3561.0,2.80813]
[1732842013540,3.13674018,3562.5,3560.1,5.94564018]
[1732842013541,5.94375018,3562.5,3560.5,0.02807955]
[1732842014048,2.80741,3562.0,3561.2,2.80797]
[1732842014204,3.13674018,3562.5,3560.9,2.80821]
[1732842014205,2.80766,3561.7,3560.9,2.80821]
[1732842014547,0.28285588,3561.6,3560.9,2.80821]
[1732842015203,3.28285588,3561.6,3560.9,2.80821]
[1732842015507,0.28285588,3561.6,3561.0,2.80816]
[1732842015830,3.0,3562.0,3561.4,2.80788]
[1732842016025,2.80763,3561.8,3560.8,2.80828]
[1732842016250,3.0,3561.7,3560.8,2.80835]
[1732842016538,3.0,3561.8,3560.8,2.80835]
[1732842017117,3.0,3561.8,3561.1,2.8081]
[1732842017313,4.17516302,3561.8,3561.1,2.8081]
[1732842017549,3.0,3561.8,3561.4,2.80786]
[1732842017703,2.93286233,3562.9,3561.2,0.02922809]
[1732842017704,1.16353654,3563.3,3562.0,2.8074]
[1732842017907,1.16353654,3563.3,3561.2,0.02922809]
[1732842017908,1.16353654,3563.3,3562.6,2.80693]
[1732842018114,2.8063,3563.4,3562.6,2.80693]
[1732842018363,2.80678,3562.8,3562.0,2.80736]
[1732842018514,3.13674018,3563.0,3561.5,2.80778]
[1732842018515,0.02089881,3562.7,3561.5,2.80778]
[1732842018855,5.94343018,3563.0,3562.1,2.80732]
[1732842019053,3.367639,3563.3,3561.0,3.16481327]
[1732842019271,2.80651,3563.2,3562.4,2.80703]
[1732842019463,2.80651,3563.2,3562.1,2.80727]
[1732842019464,2.80672,3562.9,3562.1,2.80727]
[1732842019645,2.80679,3562.8,3562.1,2.80727]
[1732842019822,3.45704992,3563.1,3562.2,2.80722]
[1732842020020,2.80663,3563.0,3562.2,2.80722]
[1732842020215,0.7576,3563.0,3562.2,2.80722]
[1732842020443,3.7423518,3562.9,3561.8,2.80749]
[1732842020647,2.80712,3562.4,3561.6,2.8077]
[1732842020822,3.0,3562.3,3561.4,0.7548]
[1732842021182,2.80732,3562.2,3561.4,0.7548]
[1732842021319,2.80732,3562.2,3561.1,2.80805]
[1732842021320,2.80741,3562.0,3561.1,5.6161]
[1732842021519,3.0,3562.1,3561.4,2.80787]
[1732842021744,0.45760736,3562.0,3561.1,2.80805]
[1732842021941,0.45760736,3562.0,3561.2,2.80802]
[1732842022340,0.7576,3562.2,3561.5,2.80779]
[1732842022554,0.7576,3562.2,3561.6,2.80771]
[1732842022961,3.0,3562.1,3561.4,2.80785]
[1732842023169,3.0,3562.0,3561.2,2.80801]
[1732842023332,3.0,3562.0,3561.3,2.80793]
[1732842023677,0.7576,3562.2,3561.3,2.80793]
[1732842023967,0.7576,3562.2,3561.6,2.80767]
[1732842024167,1.75550512,3562.2,3561.3,2.80793]
[1732842024482,4.75550512,3562.2,3561.5,2.8078]
[1732842024772,3.0,3562.4,3561.9,2.80747]
[1732842025061,3.0,3562.4,3561.6,5.61531]
[1732842025294,3.0,3562.4,3561.7,2.80762]
[1732842025428,0.02089881,3562.3,3561.7,2.80762]
[1732842025637,2.80727,3562.2,3561.5,2.80779]
[1732842025857,3.0,3562.1,3561.5,2.80779]
[1732842026059,3.0,3562.1,3561.1,2.80811]
[1732842026060,3.0,3561.8,3561.1,2.80811]
[1732842026242,3.0,3561.8,3560.4,0.29335097]
[1732842026243,6.97377655,3562.1,3560.6,0.8017]
[1732842026437,6.55923,3562.1,3561.2,2.80803]
[1732842026661,0.88251743,3562.0,3561.2,2.80803]
[1732842026873,0.7519,3562.1,3561.3,0.03001132]
[1732842027036,0.7519,3562.1,3561.3,2.83796132]
[1732842027237,6.61455,3562.5,3561.6,2.80767]
[1732842027449,0.8075,3562.5,3561.9,2.80743]
[1732842028079,3.0,3562.4,3562.0,0.03141579]
[1732842028283,3.0,3562.1,3562.0,0.03141579]
[1732842028576,0.661452,3562.3,3562.0,0.03141579]
[1732842028778,3.0,3562.2,3561.5,2.80773]
[1732842028950,3.0,3562.2,3562.1,0.03141579]
[1732842029158,3.0,3562.2,3561.5,2.80773]
[1732842029353,3.0,3562.2,3561.6,0.03141579]
[1732842029679,3.0,3562.2,3561.6,2.83913579]
[1732842029878,3.661468,3562.2,3561.6,2.83913579]
[1732842030175,3.661468,3562.2,3561.6,0.03141579]
[1732842030341,3.661468,3562.2,3561.5,2.80778]
[1732842030539,3.661468,3562.2,3561.6,0.03141579]
[1732842030740,0.781,3562.9,3561.7,0.7806]
[1732842031052,1.19570476,3563.2,3561.9,2.80749]
[1732842031245,3.58747,3563.2,3562.4,2.80703]
[1732842031591,3.58747,3563.2,3562.5,2.83841579]
[1732842031880,0.781,3563.2,3562.5,0.03141579]
[1732842032066,2.80685,3562.8,3562.5,0.03141579]
[1732842032241,3.58746,3563.2,3562.3,2.80715]
[1732842032442,0.781,3563.2,3562.5,2.80701]
[1732842032643,3.6046,3563.5,3562.8,2.80671]
[1732842032948,3.6046,3563.5,3562.9,0.03141579]
[1732842033149,0.7983,3563.5,3562.9,0.03141579]
[1732842033338,0.7983,3563.5,3563.0,2.80656]
[1732842033540,0.7983,3563.5,3563.1,0.03246136]
[1732842033776,0.7983,3563.5,3562.9,2.80667]
[1732842033961,3.7983,3563.5,3563.2,0.03177793]
[1732842034299,3.7983,3563.5,3562.9,2.80667]
[1732842034480,3.7983,3563.5,3563.3,0.03177793]
[1732842034655,3.7983,3563.5,3562.9,2.80667]
[1732842034846,3.7983,3563.5,3563.4,0.03177793]
[1732842035045,3.7983,3563.5,3562.9,2.80667]
[1732842035554,3.7983,3563.5,3563.0,0.03176358]
[1732842035884,3.0,3563.3,3562.7,2.80685]
[1732842036045,3.0,3563.3,3562.4,3.62041]
[1732842036046,0.02089881,3563.2,3563.1,0.03057691]
[1732842036378,0.7983,3563.5,3563.1,0.03057691]
[1732842036578,3.7983,3563.5,3562.6,2.80693]
[1732842036825,3.0,3563.3,3563.2,0.03057691]
[1732842036946,3.0,3563.3,3562.6,2.80687]
[1732842037145,3.0,3563.3,3562.7,2.83740691]
[1732842037484,3.0,3563.3,3562.8,2.80677]
[1732842037643,3.7983,3563.5,3562.9,2.80668]
[1732842038042,3.7983,3563.5,3563.0,0.03087642]
[1732842038274,3.7983,3563.5,3562.9,2.80668]
[1732842038456,3.7983,3563.5,3563.1,0.03087642]
[1732842038667,3.7983,3563.5,3562.9,2.80668]
[1732842038838,3.7983,3563.5,3563.2,0.03087642]
[1732842039048,3.7983,3563.5,3562.9,2.80668]
[1732842039273,3.7983,3563.5,3563.3,0.03087642]
[1732842039469,3.7983,3563.5,3562.9,2.80668]
[1732842039996,3.7983,3563.5,3563.0,0.03087642]
[1732842040167,3.7983,3563.5,3562.9,2.80668]
[1732842040359,3.7983,3563.5,3563.0,0.03087642]
[1732842040567,3.7983,3563.5,3562.9,2.80668]
[1732842040768,3.7983,3563.5,3563.0,0.03087642]
[1732842041078,3.7983,3563.5,3562.9,2.80668]
[1732842041287,0.7983,3563.5,3563.1,0.02981716]
[1732842041502,0.7983,3563.5,3563.0,2.80661]
[1732842041712,3.63795,3563.9,3563.2,0.02981716]
[1732842041860,3.63795,3563.9,3563.2,2.80639]
[1732842042194,3.63795,3563.9,3563.3,0.02981716]
[1732842042958,3.0,3563.7,3563.3,0.02981716]
[1732842043164,3.0,3563.7,3562.6,2.80692]
[1732842043165,3.0,3563.4,3562.6,2.80692]
[1732842043395,3.0,3563.4,3562.7,0.02981716]
[1732842043700,3.0,3563.7,3563.0,2.80655]
[1732842043855,3.0,3563.7,3562.4,0.8134]
[1732842043856,2.80628,3563.5,3562.7,2.80685]
[1732842044061,3.0,3563.4,3563.1,0.02776545]
[1732842044367,2.82727881,3563.3,3563.2,0.02776545]
[1732842044566,5.80638,3563.3,3562.4,0.8134]
[1732842044806,5.80638,3563.3,3562.5,2.807]
[1732842045004,6.63838,3563.3,3562.5,3.449764]
[1732842045309,6.63838,3563.3,3562.6,0.02776545]
[1732842045310,2.80652,3563.2,3562.6,0.02776545]
[1732842045898,3.832,3563.3,3562.6,2.83467545]
[1732842046610,3.63841,3563.3,3562.6,2.83467545]
[1732842047183,3.63841,3563.3,3562.6,3.5444764]
[1732842047391,2.80647,3563.2,3562.6,3.5444764]
[1732842048296,0.41526599,3563.4,3562.7,3.61525]
[1732842048493,0.41526599,3563.4,3563.3,3.61478]
[1732842048939,0.7781,3564.5,3563.3,3.61478]
[1732842049106,0.02089881,3564.4,3563.3,0.83582175]
[1732842049306,2.80597,3563.9,3563.3,0.8084]
[1732842049514,2.80597,3563.9,3563.4,0.02742175]
[1732842050201,3.0,3563.8,3563.4,0.02742175]
[1732842052013,5.806,3563.8,3563.4,0.02742175]
[1732842052351,5.80594,3563.9,3563.4,0.02742175]
[1732842053101,2.80599,3563.8,3563.4,0.02742175]
[1732842053327,5.80622,3563.5,3563.4,0.02742175]
[1732842053543,2.80654,3563.1,3562.5,0.8104]
[1732842053916,2.82743881,3563.1,3562.5,0.8104]
[1732842054237,2.80667,3563.0,3562.5,0.8104]
[1732842054442,2.80649,3563.2,3562.5,0.8104]
[1732842055344,2.80656,3563.1,3562.5,0.8104]
[1732842055710,2.80656,3563.1,3562.5,3.61741]
[1732842056019,2.80656,3563.1,3562.5,4.259876]
[1732842057332,2.80656,3563.1,3562.5,3.61741]
[1732842058144,3.41540464,3563.3,3562.5,3.61741]
[1732842058334,5.80642,3563.3,3562.5,3.61741]
[1732842059112,3.22244348,3563.2,3562.5,3.61741]
[1732842059548,2.80663,3563.0,3562.5,0.8104]
[1732842060472,0.4162011,3562.9,3562.5,0.8104]
[1732842060793,2.80663,3563.0,3562.5,0.8104]
[1732842060996,3.2228311,3563.0,3562.5,0.8104]
[1732842061148,0.41636351,3562.9,3562.5,0.8104]
[1732842061355,2.80673,3562.9,3562.5,0.8104]
[1732842061862,0.41640271,3563.0,3562.5,0.8104]
[1732842062084,0.43360559,3563.5,3562.6,0.02806936]
[1732842062415,0.41640403,3563.4,3563.2,2.80646]
[1732842062554,0.41640403,3563.6,3563.4,0.7754]
[1732842062902,0.41640403,3564.0,3563.8,2.80599]
[1732842063058,0.4165102,3564.1,3563.8,2.80599]
[1732842063267,2.98093086,3564.6,3563.8,2.80599]
[1732842063471,2.98093086,3564.6,3563.9,2.83395684]
[1732842063472,0.41628853,3564.1,3563.9,2.83395684]
[1732842063708,0.17556086,3564.4,3564.1,2.80575]
[1732842063880,0.41630769,3564.3,3564.2,0.644466]
[1732842064067,0.17556086,3564.7,3564.0,3.63886]
[1732842064419,2.80528,3564.7,3564.0,0.8331]
[1732842064709,3.22145923,3564.9,3564.0,0.8331]
[1732842064908,2.8052,3564.8,3564.1,2.80575]
[1732842065607,0.25982806,3564.7,3564.1,2.80575]
[1732842065915,0.25982806,3564.6,3564.3,2.80552]
[1732842066212,0.41629923,3564.9,3564.6,3.60966]
[1732842066213,0.25982806,3564.7,3564.6,3.60966]
[1732842066417,0.25982806,3564.9,3564.8,2.8052]
[1732842066567,1.74186978,3565.0,3564.6,0.8043]
[1732842067291,2.50510287,3565.0,3564.3,3.60469]
[1732842067495,1.74186978,3565.0,3564.3,3.60469]
[1732842067919,2.00142893,3565.0,3564.4,2.80544]
[1732842068235,1.74186978,3565.0,3564.3,3.60463]
[1732842068388,1.74186978,3565.0,3564.5,2.80543]
[1732842068589,1.74186978,3565.0,3564.3,6.41016]
[1732842068793,1.74186978,3565.0,3564.3,7.051176]
[1732842068991,1.74186978,3565.0,3564.4,2.8055]
[1732842071066,1.74186978,3565.0,3564.9,2.80512]
[1732842071367,0.25911818,3566.0,3565.9,2.80434]
[1732842071571,0.25901704,3566.4,3565.9,1.033534]
[1732842071714,1.74164572,3566.5,3565.9,1.033534]
[1732842071715,1.74164572,3566.5,3565.9,3.837844]
[1732842071911,1.74164572,3566.5,3565.9,1.033534]
[1732842072161,1.74164572,3566.5,3565.9,0.7531]
[1732842072462,2.80403,3566.3,3565.5,2.80465]
[1732842073114,3.7929,3566.4,3565.4,0.7531]
[1732842073316,0.7929,3566.4,3565.7,2.80448]
[1732842073734,3.58405,3566.8,3565.8,0.02804167]
[1732842073935,3.58405,3566.8,3566.0,2.80419]
[1732842074336,0.7804,3566.8,3566.0,2.80419]
[1732842074662,0.7804,3566.8,3566.1,2.80417]
[1732842075212,0.7804,3566.8,3565.8,3.08765817]
[1732842075419,3.0,3566.6,3566.0,2.80426]
[1732842075655,3.7804,3566.8,3566.0,2.80426]
[1732842075830,4.719145,3566.8,3566.0,2.80426]
[1732842076015,3.0,3566.7,3566.0,2.80426]
[1732842077820,0.938745,3566.8,3565.6,0.826]
[1732842078168,3.0,3566.8,3566.1,2.80415]
[1732842078311,3.0,3566.8,3566.1,2.80412]
[1732842078517,3.0,3566.8,3566.1,2.80413]
[1732842078823,3.0,3566.8,3566.0,2.80426]
[1732842078824,2.80363,3566.8,3566.0,2.80426]
[1732842079017,2.80363,3566.8,3566.1,2.80418]
[1732842079764,0.7658,3567.0,3566.2,2.80406]
[1732842080055,1.122712,3567.0,3566.3,2.80402]
[1732842080360,3.0,3567.2,3566.4,0.7904]
[1732842080723,3.0,3567.2,3566.5,2.80379]
[1732842081047,5.80333,3567.2,3566.4,0.7904]
[1732842081664,5.80333,3567.2,3566.4,3.59432]
[1732842081861,5.80333,3567.2,3566.4,6.39824]
[1732842082160,0.937581,3567.2,3566.6,2.80377]
[1732842082375,3.7694,3567.3,3566.6,2.80377]
[1732842083247,3.7694,3567.3,3566.6,2.80372]
[1732842084664,3.0,3567.3,3566.4,0.7904]
[1732842084871,3.0,3567.5,3566.9,2.80352]
[1732842085162,3.0,3567.4,3566.7,2.80371]
[1732842085319,3.0,3567.4,3566.5,2.8318948]
[1732842085513,3.0,3567.6,3566.5,0.39026428]
[1732842085722,3.02089881,3567.5,3566.9,5.60697]
[1732842085921,3.7847,3567.7,3567.0,2.80346]
[1732842086165,0.02089881,3567.6,3566.8,2.80361]
[1732842086665,9.39063,3567.7,3566.9,2.80352]
[1732842086868,0.02089881,3567.6,3566.4,0.7904]
[1732842087162,0.02089881,3567.6,3565.3,2.8048]
[1732842087163,2.80426,3566.0,3565.3,2.8048]
[1732842087461,3.0,3566.3,3565.7,2.80449]
[1732842087675,0.7942,3566.4,3565.7,2.80449]
[1732842087980,3.7942,3566.4,3565.7,2.80449]
[1732842088267,2.80423,3566.1,3565.2,2.80482]
[1732842088561,0.7942,3566.4,3565.2,0.358802]
[1732842088766,2.80434,3565.9,3565.2,0.358802]
[1732842089088,2.80442,3565.8,3565.2,0.358802]
[1732842090140,2.8045,3565.7,3565.2,0.358802]
[1732842090477,2.80426,3566.1,3565.2,0.358802]
[1732842090626,2.80426,3566.1,3565.1,3.58815]
[1732842090627,2.82515881,3566.0,3565.1,0.7832]
[1732842090830,2.80484,3565.3,3564.6,2.80536]
[1732842091767,2.80496,3565.2,3564.4,0.824]
[1732842091981,0.8065,3565.8,3564.4,0.824]
[1732842091982,2.80472,3565.5,3564.4,0.824]
[1732842092274,2.80481,3565.3,3564.6,2.80533]
[1732842092432,2.80481,3565.3,3564.6,3.51572871]
[1732842092632,3.61097,3565.8,3564.6,0.71039871]
[1732842092829,3.0,3564.8,3564.2,0.29311977]
[1732842093032,2.80545,3564.5,3564.2,0.29311977]
[1732842093446,3.0,3564.6,3563.8,2.80592]
[1732842093646,2.80536,3564.6,3563.8,2.80592]
[1732842093843,2.80566,3564.3,3563.7,1.07768682]
[1732842094150,2.80552,3564.4,3563.7,4.33628931]
[1732842094360,2.80538,3564.6,3563.8,2.80598]
[1732842094792,2.80561,3564.3,3563.7,1.53023931]
[1732842094947,3.0,3564.1,3563.7,1.07768682]
[1732842095146,3.0,3564.1,3563.7,0.7845]
[1732842095569,5.80549,3564.5,3563.7,3.59056]
[1732842095769,5.80549,3564.5,3563.7,0.81255739]
[1732842095770,3.0,3564.5,3563.7,0.81255739]
[1732842095979,3.0,3564.8,3563.9,2.80589]
[1732842096187,3.0,3564.8,3564.0,0.359039]
[1732842096789,3.0,3564.6,3564.0,0.359039]
[1732842097098,3.0,3564.5,3564.0,0.359039]
[1732842097687,5.80551,3564.5,3564.0,0.359039]
[1732842097895,5.80551,3564.5,3563.7,0.7845]
[1732842097896,3.0,3564.5,3563.7,0.7845]
[1732842098097,3.0,3564.5,3563.4,0.29321666]
[1732842098098,3.61091,3564.3,3563.4,0.29321666]
[1732842098397,2.80576,3564.1,3563.4,0.29321666]
[1732842098767,3.61091,3564.3,3563.5,2.80616]
[1732842098963,3.61091,3564.3,3563.6,0.39067767]
[1732842099362,2.80576,3564.1,3563.4,0.29321666]
[1732842099769,3.61091,3564.3,3563.5,2.83427929]
[1732842099979,2.80568,3564.2,3563.5,2.80622]
[1732842100293,2.80577,3564.1,3563.4,0.29321666]
[1732842100659,2.80591,3563.9,3563.4,0.29321666]
[1732842101097,2.80616,3563.6,3563.4,0.29321666]
[1732842101388,2.80616,3563.6,3563.0,0.7985]
[1732842101603,2.80625,3563.5,3563.0,0.7985]
[1732842102772,2.8063,3563.5,3563.0,0.7985]
[1732842102985,3.0,3563.6,3563.0,0.7985]
[1732842103292,3.61126,3564.6,3563.7,0.8036]
[1732842103496,2.8052,3564.9,3563.9,2.80584]
[1732842103653,2.80534,3564.7,3563.9,2.80584]
[1732842104250,2.80522,3564.8,3564.0,2.80582]
[1732842104465,2.80522,3564.8,3564.1,0.56397158]
[1732842104980,2.80522,3564.8,3564.0,2.80582]
[1732842104981,2.80522,3564.8,3564.0,5.61164]
[1732842105196,2.80522,3564.8,3563.8,2.80598]
[1732842105197,2.80539,3564.6,3563.8,2.80598]
[1732842105361,2.80522,3564.8,3564.0,2.80576]
[1732842105565,3.0,3564.7,3564.1,2.83378426]
[1732842105906,2.80505,3565.0,3564.2,0.7724]
[1732842106062,2.80505,3565.0,3564.2,1.13301843]
[1732842106580,2.80515,3564.9,3564.2,1.13301843]
[1732842106769,2.80495,3565.2,3564.4,2.8055]
[1732842106976,3.0,3565.1,3564.4,2.8055]
[1732842107173,2.80468,3565.5,3564.4,2.8055]